Cogmind - Beta 13 *** ADVENTURER MODE // 2024.04.04 @ 09:00:33 Player: Klelik Result: Destroyed by Y-54 Guardian with Flak Gun Performance ------------- Evolutions (4) 2000 Regions Visited (6) 1200 Robots Destroyed (64) 320 Value Destroyed (2543) 2543 Prototype IDs (1) 20 Alien Tech Used (0) 0 Bonus (-24) -24 TOTAL SCORE: 6059 Bonus ------- Friendly Fire -24 Cogmind --------- Core Integrity 0/850 Matter 282/300 Energy 148/450 System Corruption 5% Temperature Danger (480) Movement Core (200) Ox3 Location -6/Extension Parts ------- > --- POWER (2) -------- (None) > --- PROPULSION (3) --- (None) > --- UTILITY (7) ------ Energy Well Visual Processing Unit Advanced Terrain Scan Processor > --- WEAPON (3) ------- Coil Gun > --- INVENTORY (5) ---- Carbon-fiber Leg Compact Battery (200) Large Matter Pod (150) High-capacity Matter Pod (127) Peak State ------------ > --- POWER ------------ Light Fission Core Light Fission Core > --- PROPULSION ------- Carbon-fiber Leg Improved VSS Leg Improved VSS Leg > --- UTILITY ---------- Power Amplifier Advanced Heat Sink Energy Well Visual Processing Unit Advanced Terrain Scan Processor Improved Heavy Armor Plating > --- WEAPON ----------- Heavy Plasma Cannon Heavy Plasma Cannon Coil Gun > --- INVENTORY -------- Carbon-fiber Leg Improved Heat Sink Compact Battery Large Matter Pod High-capacity Matter Pod [Rating: 70] Favorites ----------- Power Light Deuterium Engine Engine Light Deuterium Engine Power Core Micro Nuclear Core Propulsion Improved VSS Leg Leg Improved VSS Leg Wheel Wheel Hover Unit Hover Unit Utility Visual Processing Unit Device Improved Heat Sink Storage Energy Well Processor Visual Processing Unit Hackware System Shield Protection Improved Propulsion Shielding Weapon Plasma Cannon Energy Gun Small Laser Energy Cannon Plasma Cannon Ballistic Gun Flak Gun Launcher Missile Launcher Impact Weapon Heavy Flail Build | -11 -10 -9 -8 -7 -6 -6 ------- Run | Yrd Mat Mat Mat Fac Fac Ext Slots Evolved 8 | . . 2 2 2 2 . Power 1 | . . . . . 1 . Propulsion 1 | . . 1 . . . . Utility 5 | . . . 2 2 1 . Weapon 1 | . . 1 . . . . Parts Attached 68 | 5 4 6 13 21 17 2 Power 10 | 1 1 . 2 2 4 . Engine 7 | 1 1 . 2 1 2 . Core 3 | . . . . 1 2 . Reactor . | . . . . . . . Propulsion 14 | 2 2 . 5 4 1 . Treads . | . . . . . . . Leg 7 | . . . 2 4 1 . Wheel 2 | 2 . . . . . . Hover 5 | . 2 . 3 . . . Flight . | . . . . . . . Utility 22 | . . 2 4 6 9 1 Device 9 | . . . . 4 4 1 Storage 3 | . . . . . 3 . Processor 4 | . . . 3 . 1 . Hackware 2 | . . 2 . . . . Protection 4 | . . . 1 2 1 . Artifact . | . . . . . . . Weapon 22 | 2 1 4 2 9 3 1 Energy Gun 2 | 1 . . 1 . . . Energy Cannon 8 | . 1 . . 5 2 . Ballistic Gun 7 | 1 . . . 4 1 1 Ballistic Cannon . | . . . . . . . Launcher 4 | . . 4 . . . . Special Weapon . | . . . . . . . Impact Weapon 1 | . . . 1 . . . Slashing Weapon . | . . . . . . . Piercing Weapon . | . . . . . . . Special Melee Weapon . | . . . . . . . Unidentified Prototypes 1 | . . . . . 1 . Parts Lost 29 | . . . 9 7 5 8 Power 2 | . . . 1 1 . . Propulsion 6 | . . . 2 1 . 3 Utility 13 | . . . 2 4 4 3 Weapon 8 | . . . 4 1 1 2 Highest Loss Streak 8 | . . . 3 4 1 8 To Critical Strikes . | . . . . . . . Average Slot Usage (%) 85 | . 71 86 75 90 84 84 Engine 5 | . 14 11 9 4 5 . Core 2 | . . . . . 6 11 Leg 15 | . . . 2 21 20 17 Wheel 1 | . 24 . . . . . Hover 3 | . 3 22 12 . . . Device 10 | . . . . 14 12 11 Processor 15 | . . . 17 22 11 13 Hackware 2 | . . 20 7 . . . Protection 4 | . . . 9 3 6 5 Energy Cannon 9 | . 1 . . 13 8 12 Ballistic Gun 5 | . 14 . . 5 9 5 Launcher 3 | . . 32 11 . . . Impact Weapon 1 | . . . 4 2 . . Naked Turns . | . . . . . . . Heaviest Build 61 | 6 8 21 23 39 61 61 Greatest Support 48 | 20 20 12 26 48 45 45 Greatest Overweight (x) 6 | . . 1 6 2 1 1 Average Overweight (x) . | . . . 1 . . 1 Largest Inventory Capacity 5 | 5 5 5 5 5 5 5 Average Capacity 5 | 5 5 5 5 5 5 5 Most Carried 5 | 2 5 5 5 5 5 5 Average Carried 3 | . 3 2 1 3 4 4 Final Capacity 5 | 5 5 5 5 5 5 5 Final Carried 5 | . 4 3 2 4 5 4 Class Distribution -------------------- 24% | Mutant 21% | Scavenger-Tank 13% | Scavenger-Skirmisher 10% | Skirmisher 7% | Hacker-Mutant 6% | Scavenger-Mutant 6% | Tank 6% | Hacker-Bomber Dominant Class ---------------- Mutant | -10/Materials Hacker-Bomber | -9/Materials Hacker-Mutant | -8/Materials Scavenger-Skirmisher | -7/Factory Scavenger-Tank | -6/Factory Tank | -6/Extension Resources | -11 -10 -9 -8 -7 -6 -6 ----------- Run | Yrd Mat Mat Mat Fac Fac Ext Matter Collected 1859 | 256 61 73 228 728 305 208 Remotely 362 | . . . . 362 . . Salvage Created 2438 | 33 76 108 318 922 574 407 Parts 128 | 3 12 7 18 52 25 11 Haulers Intercepted . | . . . . . . . Recyclers Shooed 5 | . . . . . 4 1 Parts Field Recycled . | . . . . . . . Retrieved Matter . | . . . . . . . Parts Self-Destructed . | . . . . . . . Prevented . | . . . . . . . Kills | -11 -10 -9 -8 -7 -6 -6 ------- Run | Yrd Mat Mat Mat Fac Fac Ext Combat Hostiles Destroyed 52 | 1 4 3 9 19 10 6 Melee 1 | . . . 1 . . . Guns 18 | 1 3 . 2 4 7 1 Cannons 24 | . 1 . 1 15 3 4 AOE 6 | . . 3 3 . . . Classes Destroyed 10 | 1 2 2 2 1 1 1 Builder 1 | . . . 1 . . . Operator 3 | . . 1 . 2 . . Watcher 8 | . 1 2 . 3 2 . Swarmer 12 | . 4 . . 8 . . Grunt 20 | 1 . 2 7 3 6 1 Brawler 5 | . . . . . 2 3 Duelist 2 | . . . 1 1 . . Sentry 6 | . . 1 1 3 1 . Programmer 6 | . . . . 4 1 1 Behemoth 1 | . . . . . . 1 Best Kill Streak 5 | 1 2 3 4 4 5 3 Combat Bots Only 5 | 1 2 3 3 4 5 3 Max Kills in Single Turn 3 | 1 1 3 2 1 1 1 Gunslinging . | . . . . . . . Exploded 2 | . . 2 2 . . . Melee 1 | . . . 1 . . . Uniques/NPCs Destroyed . | . . . . . . . Combat | -11 -10 -9 -8 -7 -6 -6 -------- Run | Yrd Mat Mat Mat Fac Fac Ext Hostile Shots Fired 505 | 2 8 13 78 152 66 186 Missed 160 | 1 2 7 26 58 22 44 Damage Taken 4085 | 9 34 66 704 1077 692 1503 Core 1164 | 9 . 21 132 150 26 826 Absorbed by Shields . | . . . . . . . Redirected to Shielding 101 | . . . 93 8 . . Ignored by Resistances 1105 | 3 12 19 194 314 187 376 Regen/Repaired (Parts) 19 | . 3 . 16 . . . Core Remaining (%) 88 | 96 96 94 76 78 . . Volleys Fired 137 | 2 7 4 18 59 28 19 Largest 3 | 2 2 3 2 3 3 3 Hottest 210 | 60 80 108 72 170 208 210 Shots Fired 306 | 4 14 6 24 141 76 41 Gun 132 | 4 11 . 11 45 50 11 Cannon 155 | . 3 . . 96 26 30 Launcher 19 | . . 6 13 . . . Special . | . . . . . . . Kinetic 115 | 2 7 . . 45 50 11 Thermal 172 | 2 7 . 11 96 26 30 Explosive 19 | . . 6 13 . . . Electromagnetic . | . . . . . . . Robot Hit Streak 20 | 2 4 5 8 13 20 12 Robot Miss Streak 4 | 1 2 . 2 4 3 2 Penetration Max 1 | . . . . . . 1 Secondary Targets . | . . . . . . . Shots Hit Robots 221 | 3 7 2 26 94 60 29 Core Hits 145 | 2 5 9 17 39 62 11 Critical Kills 1 | . . . . . . 1 Critical Parts Destroyed 1 | . . . 1 . . . Critical Strikes 2 | . . . 1 . . 1 Meltdown 1 | . . . . . . 1 Smash 1 | . . . 1 . . . Melee Attacks 13 | . . . 13 . . . Impact 13 | . . . 13 . . . Slashing . | . . . . . . . Piercing . | . . . . . . . Sneak Attacks . | . . . . . . . Combat Hostiles . | . . . . . . . Follow-up Attacks . | . . . . . . . Damage Inflicted 6454 | 34 104 382 1139 2297 1473 1025 Guns 1904 | 34 50 . 135 582 947 156 Cannons 3163 | . 54 . . 1715 525 869 Explosions 933 | . . 382 551 . . . Melee 453 | . . . 453 . . . Ramming 1 | . . . . . 1 . Kinetic 1713 | 14 14 . . 582 947 156 Thermal 3354 | 20 90 . 135 1715 525 869 Explosive 933 | . . 382 551 . . . Electromagnetic . | . . . . . . . Impact 453 | . . . 453 . . . Slashing . | . . . . . . . Piercing . | . . . . . . . Highest Corruption 5 | . . . . 2 5 5 Average Corruption 2 | . . . . 1 4 5 Corruption Purged . | . . . . . . . Corruption Blocked . | . . . . . . . Effects 31 | . . . . 7 18 6 Message Errors 4 | . . . . 1 2 1 Matter Fused 5 | . . . . 1 3 1 Heat Flow Errors 2 | . . . . . 1 1 Energy Discharges 6 | . . . . 2 4 . Parts Rejected 1 | . . . . . . 1 Data Loss (minor) 6 | . . . . 2 2 2 Data Loss (major) 1 | . . . . . 1 . Misfires 3 | . . . . 1 2 . Alerts 1 | . . . . . 1 . Weapon Failures 2 | . . . . . 2 . Overload Shots . | . . . . . . . Overflow Damage 230 | . . . 102 90 2 36 Projectiles 128 | . . . . 90 2 36 Explosions . | . . . . . . . Melee 102 | . . . 102 . . . Knockbacks 5 | . . . 5 . . . Impact 4 | . . . 4 . . . Kinetic . | . . . . . . . Secondary 1 | . . . 1 . . . Self-Inflicted Damage 5 | . . 5 . . . . Shots 1 | . . 1 . . . . Rammed . | . . . . . . . Targets Rammed 1 | . . . . . 1 . Kicked 1 | . . . . . 1 . Crushed . | . . . . . . . Highest Temperature 653 | 6 74 45 159 570 277 653 Average Temperature 158 | 6 40 20 60 182 85 272 Received Heat Transfer 1218 | 6 . 30 396 180 246 360 Effects 28 | . . . . 10 3 15 Shutdowns 3 | . . . . 2 . 1 Energy Bleed 5 | . . . . . 1 4 Interference 7 | . . . . 3 2 2 Matter Decay 2 | . . . . 2 . . Short Circuit 1 | . . . . . . 1 Damage (minor) 3 | . . . . 2 . 1 Damage (major) 5 | . . . . 1 . 4 Damage (core) 2 | . . . . . . 2 Siege Activations . | . . . . . . . Robots Corrupted . | . . . . . . . Combat Hostiles . | . . . . . . . Parts Fried 1 | . . . 1 . . . Impact Corruptions 4 | . . . 4 . . . Robots Melted 1 | . . . . . . 1 Combat Hostiles 1 | . . . . . . 1 Parts Melted 13 | . . . 1 8 . 4 Heat Transferred 5451 | 50 186 . 333 2632 1000 1250 Parts Sabotaged . | . . . . . . . Parts Stolen . | . . . . . . . Parts Stripped . | . . . . . . . Power Chain Reactions . | . . . . . . . Alert | -11 -10 -9 -8 -7 -6 -6 ------- Run | Yrd Mat Mat Mat Fac Fac Ext Peak Influence 324 | 20 161 276 324 235 185 96 Initial 99 | . 11 57 99 65 . . Average 91 | 3 38 127 195 71 88 59 Maximum Alert Level 1 | . . 1 1 1 . . Low Security (%) 89 | 100 100 86 49 93 100 100 Level 1 10 | . . 13 50 6 . . Level 2 . | . . . . . . . Level 3 . | . . . . . . . Level 4 . | . . . . . . . Level 5 . | . . . . . . . High Security . | . . . . . . . Max Security . | . . . . . . . Squads Dispatched 14 | . . . 1 11 2 . Investigation 3 | . . . . 3 . . Extermination 5 | . . . . 4 1 . Reinforcement 2 | . . . 1 1 . . Assault . | . . . . . . . Garrison 4 | . . . . 3 1 . Intercept . | . . . . . . . Searches Triggered . | . . . . . . . Construction Impeded 1 | . . . 1 . . . Haulers Reinforced . | . . . . . . . Active Scanning Responses . | . . . . . . . Cargo Convoy Interrupts . | . . . . . . . Stealth | -11 -10 -9 -8 -7 -6 -6 --------- Run | Yrd Mat Mat Mat Fac Fac Ext Distress Signals 2 | . . 1 1 . . . Communications Jammed . | . . . . . . . Distress Signals . | . . . . . . . Times Spotted 74 | 1 8 6 11 24 15 9 Peak Tracking Total 5 | 1 5 4 3 5 5 5 Tactical Retreats 5 | . 1 1 2 . 1 . Traps | -11 -10 -9 -8 -7 -6 -6 ------- Run | Yrd Mat Mat Mat Fac Fac Ext Traps Triggered 3 | . . . 2 . 1 . Indirectly . | . . . . . . . Trap Hack Attempts . | . . . . . . . Triggered . | . . . . . . . Disarmed 6 | . . . . 6 . . Reprogrammed . | . . . . . . . Reused . | . . . . . . . Traps Extracted . | . . . . . . . Installed . | . . . . . . . Triggered . | . . . . . . . Machines | -11 -10 -9 -8 -7 -6 -6 ---------- Run | Yrd Mat Mat Mat Fac Fac Ext Machines Disabled 5 | . . 2 1 1 1 . Max in Single Turn 1 | . . 1 1 1 1 . Garrison Access 1 | . . . . . 1 . Machines Repaired . | . . . . . . . Machines Dismantled . | . . . . . . . Machines Sabotaged . | . . . . . . . Overloaded Fab Kills . | . . . . . . . Hacking | -11 -10 -9 -8 -7 -6 -6 --------- Run | Yrd Mat Mat Mat Fac Fac Ext Machines Accessed 33 | . 5 . 5 15 8 . Terminals 18 | . 2 . 3 9 4 . Fabricators 2 | . . . . 1 1 . Repair Stations 3 | . 1 . 1 1 . . Recycling Units 5 | . 2 . . 2 1 . Scanalyzers 3 | . . . 1 1 1 . Garrison Access 2 | . . . . 1 1 . Total Hacks 83 | . 14 . 18 34 17 . Successful 68 | . 13 . 16 24 15 . Failed 15 | . 1 . 2 10 2 . Catastrophic 1 | . . . . 1 . . Database Lockouts . | . . . . . . . Manual . | . . . . . . . Terminals 39 | . 7 . 11 13 8 . Fabricators 2 | . . . . 1 1 . Repair Stations 5 | . 2 . 2 1 . . Recycling Units 21 | . 5 . . 12 4 . Scanalyzers 10 | . . . 5 3 2 . Garrison Access 6 | . . . . 4 2 . Terminal Hacks 31 | . 6 . 9 9 7 . Record 12 | . 3 . 6 2 1 . Open Door 1 | . . . . . 1 . Open DSF 2 | . . . . 2 . . Level Access Points 1 | . . . . 1 . . Alert Level 3 | . 1 . . 1 1 . Unreport Threat 1 | . . . . 1 . . Locate Traps 1 | . . . . . 1 . Disarm Traps 1 | . . . . 1 . . Dispatch Records 1 | . 1 . . . . . Investigation Status 2 | . . . 1 . 1 . Extermination Status 1 | . . . . 1 . . Reinforcement Status 1 | . . . . . 1 . Hauler Manifests 1 | . . . 1 . . . Zone Layout 3 | . 1 . 1 . 1 . Fabricator Hacks 2 | . . . . 1 1 . Network Status 1 | . . . . . 1 . Build 1 | . . . . 1 . . Repair Station Hacks 4 | . 2 . 2 . . . Scan Component 2 | . 1 . 1 . . . Repair 2 | . 1 . 1 . . . Recycling Unit Hacks 21 | . 5 . . 12 4 . Recycle Component 5 | . . . . 4 1 . Process 5 | . 1 . . 3 1 . Report Inventory 5 | . 2 . . 2 1 . Retrieve Matter 5 | . 1 . . 3 1 . Retrieve Components 1 | . 1 . . . . . Scanalyzer 9 | . . . 5 2 2 . Insert Component 6 | . . . 3 2 1 . Analyze 3 | . . . 2 . 1 . Garrison Access Hacks 1 | . . . . . 1 . Seal Access 1 | . . . . . 1 . Unauthorized Hacks . | . . . . . . . Terminals . | . . . . . . . Fabricators . | . . . . . . . Repair Stations . | . . . . . . . Recycling Units . | . . . . . . . Scanalyzers . | . . . . . . . Garrison Access . | . . . . . . . Data Cores Recovered . | . . . . . . . Used . | . . . . . . . Hacking Detections 27 | . 5 . 3 15 4 . Full Trace Events 2 | . . . . 2 . . Feedback Events . | . . . . . . . Feedback Blocked . | . . . . . . . Robot Schematics Acquired . | . . . . . . . Robots Built . | . . . . . . . Authchips . | . . . . . . . Time . | . . . . . . . Total Robot Build Rating . | . . . . . . . Part Schematics Acquired 3 | . . . 2 . 1 . Parts Built 2 | . . . . 2 . . Authchips . | . . . . . . . Time 47 | . . . . 47 . . Total Part Build Rating 10 | . . . . 10 . . Parts Repaired 2 | . 1 . 1 . . . Time 39 | . 13 . 26 . . . Parts Recycled 5 | . . . . 4 1 . Recycled Matter 258 | . 9 . . 192 57 . Retrieved Matter 258 | . 9 . . 192 57 . Retrieved Components 1 | . 1 . . . . . Parts Scanalyzed 4 | . . . 2 1 1 . Part Schematics Acquired 3 | . . . 2 . 1 . Parts Damaged 1 | . . . . 1 . . Bothacking | -11 -10 -9 -8 -7 -6 -6 ------------ Run | Yrd Mat Mat Mat Fac Fac Ext Used RIF Installer . | . . . . . . . Robots Hacked . | . . . . . . . Non-combat . | . . . . . . . Combat . | . . . . . . . Robot Hacks Applied . | . . . . . . . Relay Couplers Released . | . . . . . . . Fabnet Peak Effective % . | . . . . . . . Robots Rewired . | . . . . . . . Allies Hacked . | . . . . . . . Hacks Repelled . | . . . . . . . Allies | -11 -10 -9 -8 -7 -6 -6 -------- Run | Yrd Mat Mat Mat Fac Fac Ext Total Allies . | . . . . . . . Largest Group . | . . . . . . . Highest-Rated Group . | . . . . . . . Highest-Rated Ally . | . . . . . . . Total Orders . | . . . . . . . Ally Attacks . | . . . . . . . Total Damage . | . . . . . . . Kills . | . . . . . . . Allies Corrupted . | . . . . . . . Allies Melted . | . . . . . . . Intel | -11 -10 -9 -8 -7 -6 -6 ------- Run | Yrd Mat Mat Mat Fac Fac Ext Robot Analysis Total . | . . . . . . . Derelict Logs Recovered . | . . . . . . . Drone Launches . | . . . . . . . Drone Recoveries . | . . . . . . . Exploration | -11 -10 -9 -8 -7 -6 -6 ------------- Run | Yrd Mat Mat Mat Fac Fac Ext Turns Passed 4369 | 60 251 294 564 2048 913 239 Spaces Moved 2923 | 62 280 233 352 1289 606 101 Core 24 | 17 . . 4 . . 3 Treads . | . . . . . . . Legs 2044 | . . . 51 1289 606 98 Wheels 291 | 45 246 . . . . . Hover 564 | . 34 233 297 . . . Flight . | . . . . . . . Fastest Speed 50 | 50 56 56 56 90 100 100 Average Speed 126 | 71 77 114 127 135 129 180 Slowest Speed 350 | 80 80 116 350 270 183 185 Overloaded Moves . | . . . . . . . Propulsion Burnouts . | . . . . . . . Robots Hopped . | . . . . . . . Cave-ins Triggered . | . . . . . . . Exploration Rate (%) 25 | 5 42 23 31 32 21 24 Regions Visited 6 Branch Regions 1 Pre-discovered Areas . | . . . . . . . Known Exits Taken 1 | . . . . 1 . . Unknown Exits Taken 5 | 1 1 1 1 . 1 . Scrap Searched . | . . . . . . . Spaces Dug 8 | . . 8 . . . . Terrain Destroyed 139 | . . 39 92 3 1 4 Melee . | . . . . . . . Projectile 8 | . . . . 3 1 4 AOE 131 | . . 39 92 . . . Terrain Rammed . | . . . . . . . Walls Destroyed . | . . . . . . . Machines Disabled . | . . . . . . . Actions | -11 -10 -9 -8 -7 -6 -6 --------- Run | Yrd Mat Mat Mat Fac Fac Ext Total 3331 | 73 299 255 420 1482 678 124 Wait 107 | . . . 12 86 8 1 Move 2917 | 61 279 232 351 1288 605 101 Hop . | . . . . . . . Pick Up 63 | 5 7 7 12 22 9 1 Fast Attach 7 | . . 1 . . 6 . Attach 39 | 5 . 2 12 15 3 2 Detach 1 | . . . . 1 . . Swap 23 | . 4 3 1 6 9 . Drop 23 | . 2 6 1 5 9 . Fire 137 | 2 7 4 18 59 28 19 Melee 13 | . . . 13 . . . Ram . | . . . . . . . Kick 1 | . . . . . 1 . Crush . | . . . . . . . Escape Stasis . | . . . . . . . Rewire . | . . . . . . . Trap . | . . . . . . . Miscellaneous . | . . . . . . . Route ------- -11/Scrapyard -10/Materials -9/Materials -8/Materials -7/Factory (discovered 4 exits: *Fac x4) -6/Factory (discovered 2 exits: [*Low] / [*Ext]) -6/Extension History --------- Turn | Location | Event 2 | -11/Scrapyard | Met Revision 17 42 | -11/Scrapyard | Discovered new exit (range 8) 61 | -11/Scrapyard | Entered Materials 206 | -10/Materials | Discovered new exit (range 10) 232 | -10/Materials | Repaired Hover Unit 304 | -10/Materials | Build established: Mutant 312 | -10/Materials | Entered another Materials area 312 | -9/Materials | Evolved 2 slots: Propulsion x1, Weapon x1 461 | -9/Materials | Discovered new exit (range 13) 606 | -9/Materials | Entered another Materials area 606 | -8/Materials | Evolved 2 slots: Utility x2 683 | -8/Materials | Repaired Hover Unit 996 | -8/Materials | Build established: Hacker-Mutant 1052 | -8/Materials | Lost 3 parts (1n1u1w) 1115 | -8/Materials | Discovered new exit (range 4) 1170 | -8/Materials | Entered Factory 1170 | -7/Factory | Evolved 2 slots: Utility x2 1309 | -7/Factory | Build established: Mutant 1506 | -7/Factory | Fabricated Imp. VSS Leg? 1733 | -7/Factory | Garrison activated, responded to threat 1969 | -7/Factory | Identified exit to Factory 2366 | -7/Factory | Lost 4 parts (1p1n1u1w) 2405 | -7/Factory | Build established: Scavenger-Skirmisher 2872 | -7/Factory | Build established: Skirmisher 3218 | -7/Factory | Entered another Factory area 3218 | -6/Factory | Evolved 2 slots: Power x1, Utility x1 3383 | -6/Factory | Build established: Scavenger-Tank 3392 | -6/Factory | Garrison activated, responded to threat 4006 | -6/Factory | Discovered new exit (range 7) 4118 | -6/Factory | Discovered new exit (range 9) 4131 | -6/Factory | Entered Extension 4302 | -6/Extension | Spotted B-75 Beast 4311 | -6/Extension | Destroyed B-75 Beast 4323 | -6/Extension | Spotted B-75 Beast 4358 | -6/Extension | Core integrity fell below 50% 4366 | -6/Extension | Core integrity fell below 20% 4370 | -6/Extension | Destroyed by Y-54 Guardian with Flak Gun Last Messages --------------- Overheating: Core damaged (-136). Overheating: Adv. Terrain Scan Processor damaged (-4). P-60 Hacker destroyed. Imp. Heat Sink destroyed. Adv. Terrain Scan Processor broken. Overheating: Short circuit. Overheating: Energy bleed (-57). Hvy. Plasma Cannon destroyed. Knocked back. R-10 Processor collects Lgt. Fission Core. Acquired Coil Gun. System corrupted: Component data lost. Overheating: Core damaged (-144). Slug penetrates Y-54 Guardian. Overheating: Energy bleed (-22). Slug penetrates Y-54 Guardian. [Achievement: Please Form A Line] [Achievement: First Step to Greatness] [Achievement: 5k Club] Map ----- +----------------------------------------------------+ | ?????????????????????????????????????????????????? | | ?????????????????????????????????????????????????? | | ?????????????????????????????????????????????????? | | ?????????????????????????????????????????????????? | | ?????????????????????????????????????????????????? | | ?????????????????????????????????????????????????? | | ?????????????????????????????????????????????????? | | ?????????????????????????????????????????????????? | | ?????????????????????????????????????????????????? | | ?????????????????????????????????????????????????? | | ?????????????????????????????????????????????????? | | ?????????????????????????????????????????????????? | | ?????????????????????????????????????????????????? | | ?????????????????????????????????????????????????? | | ?????????????????????????????????????????????????? | | ?????????????????????????????????????????????????? | | ?????????????????????????????????????????????????? | | ?????????????????????????????????????????????????? | | ?????????????????????????????????????????????????? | | ?????????????????????????????????????????????????? | | ????????????????????????????????????# ##?????????? | | ?????????????????????????????????? "?????????? | | ???????????????????????????????? ?????????? | | ??????????????????????????????? ????????? | | ????????????????????????###?? ???????? | | #########################@## ???????? | | % R *Y% ???????? | | %% %Y ! ???????? | | %% !==* BB ???????? | | %BB ???????? | | u % k ????????? | | ############################ ????????? | | ???????????????????????????? ?????????? | | ???????????????????????????? ?????????? | | ????????????????????????????? ?????????? | | ????????????????????????????? ??????????? | | ??????????????????????????????###T#"""#??????????? | | ??????????????????????????????????#??????????????? | | ?????????????????????????????????????????????????? | | | | | | | | | | | | | | | | | | | | | | | +----------------------------------------------------+ Best States ------------- Heat Dissipation 56 Energy Generation 36 Energy Capacity 570 Matter Stores 431 Matter Capacity 450 Sight Range 18 Robot Scan Range 15 Terrain Scan Density 210 Power Amplification 20 Armor Coverage 600 Resistance: KI 20 Resistance: TH 30 Resistance: EX 20 Resistance: EM 20 Resistance: I 20 Resistance: S 20 Resistance: P 20 Propulsion Shielding 66 Evasion (%) 57 Melee Accuracy 5 Matter Filtering 30 Offensive Hacking 10 Defensive Hacking 20 Trap Extractor Capacity 6 Item Schematics ----------------- Mace | -8/Materials | Scanalyzed Lgt. Ion Engine | -8/Materials | Scanalyzed Hcp. Matter Pod | -6/Factory | Scanalyzed Robot Schematics ------------------ None Fabricated ------------ Imp. VSS Leg | x2 | -7/Factory | Preloaded Alien Tech Used ----------------- None Achievements -------------- 5k Club Crack Shot Everything Is Under Control First Step to Greatness Hey, That's Mine! It's Just You Just What I Needed Librarian Made in Tau Ceti IV One Hack Too Far Oops Part-time Mechanic Please Form A Line Risk Taker Serviceable Loadout Shopping List Troublemaker Uninvited Guest Use The Force Challenges ------------ None Game ------ Seed DataIntegratedInsulator Manual? 0 Play Time 02:20:11 Cumulative 2.3 hours Start 2024.04.04 @ 06:12:15 End 2024.04.04 @ 09:00:33 Sessions 1 Manual Loads 0 Difficulty Adventurer Special Mode None Game No. 1 Rogue 0 Adventurer 1 Explorer 0 Win Type - Total 0 Types 0/0/0/0/0/0/0/0/0 Lore% 1 Gallery% 4 Achievement% 7 Wizard Run 0 Options --------- Layout 1 ASCII 0 Keyboard 0 Movement Mouse Keybinds 0 Fullscreen 1 Font 24/Smallcaps Map View 50x35 Zoom Use 0% Tactical HUD 0 Map Filters NONE Filters NONE Steam 1 RUN: 8d822838-cc04-4fe3-a1ca-35ba50aa3bb4